fUSD/lending_fUSD_20240814
["ID","MTS","AMOUNT","RATE_DAILY","PERIOD"]
[334803059,1723600231764,-16432.7860636,0.00010051,2]
[334803060,1723600231775,-7457.2139364,0.00010051,2]
[334803061,1723600231785,-200.0,0.000101,2]
[334803062,1723600231796,-246.61,0.00010248,2]
[334803063,1723600231806,-150.0,0.00010438,2]
[334803064,1723600231815,-274.17,0.00010473,2]
[334803065,1723600231824,-400.0,0.000105,3]
[334803066,1723600231835,-879.97,0.000105,2]
[334803067,1723600231844,-3345.01749092,0.000105,2]
[334803068,1723600231856,-909.3594811,0.000105,2]
[334803069,1723600231986,-2158.44302798,0.000105,2]
[334803070,1723600231995,-841.19,0.000105,2]
[334803071,1723600232005,-900.0,0.000106,3]
[334803072,1723600232015,-1300.0,0.000107,3]
[334803073,1723600232024,-150.0,0.00010779,2]
[334803074,1723600232033,-1030.00228028,0.0001078,2]
[334803075,1723600232042,-1175.12140798,0.0001078,2]
[334803076,1723600232051,-167.9088,0.000108,2]
[334803077,1723600232061,-1800.0,0.000108,3]
[334803078,1723600232070,-499.99,0.0001089,2]
[334803079,1723600232079,-948.6191,0.000109,2]
[334803080,1723600232088,-115391.5053,0.000109,2]
[334803081,1723600232098,-771.5912,0.000109,2]
[334803082,1723600232107,-8080.4178,0.000109,2]
[334803083,1723600232116,-80464.5236,0.000109,2]
[334803084,1723600232125,-2003.27,0.000109,2]
[334803085,1723600232134,-418.3462,0.000109,2]
[334803086,1723600232143,-150.31,0.000109,2]
[334803087,1723600232152,-842.37,0.000109,2]
[334803088,1723600232161,-2300.0,0.000109,3]
[334803089,1723600232171,-7500.0,0.000109,2]
[334803090,1723600232180,-220.2894034,0.000109,2]
[334803091,1723600232191,-877.7105966,0.000109,2]
[334803092,1723600232201,-243.86554978,0.000109,2]
[334803093,1723600232210,-250.0,0.00010959,2]
[334803094,1723600232220,-264.57,0.00010959,2]
[334803095,1723600232229,-220.19512652,0.00010997,2]
[334803096,1723600232238,-1111.5287271,0.00010998,2]
[334803097,1723600232250,-295.44814184,0.00010998,2]
[334803098,1723600232261,-7062.90663695,0.00010998,2]
[334803099,1723600232272,-8508.47926252,0.00010998,2]
[334803100,1723600232283,-349.70936002,0.00010998,2]
[334803101,1723600232294,-1192.8949193,0.00010998,2]
[334803109,1723600238077,-197.27814029,0.00010899,2]
[334803110,1723600238088,-690.22185971,0.00010998,2]
[334803111,1723600238099,-719.45,0.00010998,2]
[334803112,1723600238110,-2510.72,0.00010998,2]
[334803113,1723600238120,-443.13092382,0.00010998,2]
[334803114,1723600238132,-1100.67125844,0.00010998,2]
[334803115,1723600238143,-326.45,0.00010998,2]
[334803116,1723600238154,-784.64182838,0.00010998,2]
[334803117,1723600238165,-300.001004,0.00010998,2]
[334803118,1723600238176,-717.96206054,0.00010998,2]
[334803119,1723600238188,-33702.15347074,0.00010998,2]
[334803120,1723600238197,-166.67230095,0.00010999,2]
[334803121,1723600238208,-578.10663931,0.00010999,2]
[334803122,1723600238220,-118612.52332443,0.00011,2]
[334803123,1723600238230,-36183.42614127,0.00011,2]
[334803124,1723600238242,-1664.7,0.00011,2]
[334803125,1723600238297,-666.4,0.00011,2]
[334803126,1723600238307,-4359.03,0.00011,2]
[334803127,1723600238320,-655.6964493,0.00011,2]
[334803128,1723600238332,-287.68992705,0.00011,2]
[334803129,1723600238344,-500.0,0.00011,2]
[334803130,1723600238355,-542.99403541,0.00011,2]
[334803161,1723600239905,-1636.46699283,0.00011,2]
[334803162,1723600239918,-376.955934,0.00011,2]
[334803163,1723600239931,-578.60900341,0.00011,2]
[334803164,1723600239942,-2926.4020911,0.00011,2]
[334803165,1723600239957,-1809.41,0.00011,2]
[334803166,1723600239972,-1281.38,0.00011,2]
[334803167,1723600239984,-1090.08383054,0.00011,2]
[334803168,1723600240204,-7701.58319048,0.00011,2]
[334803169,1723600240215,-1124.02077438,0.00011,2]
[334803170,1723600240228,-6102.1638032,0.00011,2]
[334803171,1723600240242,-11384.66755912,0.00011,2]
[334803172,1723600240253,-1729.84999999,0.00011,2]
[334803173,1723600240264,-283.80960618,0.00011,2]
[334803174,1723600240275,-111742.50435818,0.00011,2]
[334803175,1723600240286,-418.0170567,0.00011,2]
[334803176,1723600240297,-644.08472678,0.00011,2]
[334803177,1723600240309,-80413.53315472,0.00011,2]
[334803180,1723600240320,-28243.78778557,0.00011,2]
[334803182,1723600240331,-4608.07243216,0.00011,2]
[334803194,1723600243062,-322.59029532,0.00011,2]
[334803196,1723600243076,-831.48450349,0.00011,2]
[334803197,1723600243088,-4000.0,0.00011,2]
[334803200,1723600243101,-286.93626806,0.00011,2]
[334803202,1723600243113,-1570.55517767,0.00011,2]
[334803204,1723600243125,-584.30000011,0.00011,2]
[334803206,1723600243137,-2978.44655774,0.00011,2]
[334803208,1723600243148,-1255.06367634,0.00011,2]
[334803210,1723600243160,-748.63230573,0.00011,2]
[334803212,1723600243171,-715.36994382,0.00011,2]
[334803213,1723600243182,-989152.34583458,0.00011,2]
[334803214,1723600243191,-14188.03872388,0.00011,2]
[334803215,1723600243202,-1599.08934919,0.00011,2]
[334803216,1723600243214,-873.04153788,0.00011,2]
[334803217,1723600243225,-985.07438389,0.00011,2]
[334803218,1723600243237,-455.37695136,0.00011,2]
[334803219,1723600243545,-3604.96405325,0.00011,2]
[334803220,1723600243557,-931.13278959,0.00011,2]
[334803222,1723600244625,-653.44587086,0.00011,2]
[334803223,1723600244636,-427.18428536,0.00011,2]
[334803224,1723600244648,-537.88,0.00011,2]
[334803225,1723600244660,-768.44720034,0.00011,2]
[334803226,1723600244672,-9723.75219398,0.00011,2]
[334803227,1723600245932,-1295.87497203,0.000109,2]
[334803228,1723600245944,-51.11462797,0.000109,2]
[334803229,1723600245955,-8337.15321306,0.00011,2]
[334803230,1723600245967,-11753.76194839,0.00011,2]
[334803231,1723600245978,-7533.79919372,0.00011,2]
[334803232,1723600245993,-1740.74654837,0.00011,2]
[334803236,1723600246166,-4360.73198992,0.00011,2]
[334803237,1723600246177,-29900.94388131,0.00011,2]
[334803238,1723600246189,-609.53823585,0.00011,2]
[334803239,1723600246201,-1862.13435004,0.00011,2]
[334803240,1723600246213,-506.28464956,0.00011,2]
[334803241,1723600246224,-430.18684934,0.00011,2]
[334803242,1723600246236,-474.12619084,0.00011,2]
[334803243,1723600246247,-3666.82998998,0.00011,2]
[334803244,1723600246262,-21671.4835747,0.00011,2]
[334803245,1723600246274,-12135.87654505,0.00011,2]
[334803246,1723600246285,-2353.21410219,0.00011,2]
[334803247,1723600246298,-1000.54103258,0.00011,2]
[334803248,1723600246310,-411.66205028,0.00011,2]
[334803249,1723600246322,-31524.15144403,0.00011,2]
[334803250,1723600246333,-28760.000003,0.00011,2]
[334803251,1723600246345,-553.56974129,0.00011,2]
[334803253,1723600246356,-5143.26,0.00011,2]
[334803255,1723600246368,-1571.62175365,0.00011,2]
[334803257,1723600246379,-1421.4756318,0.00011,2]
[334803258,1723600246391,-2439.94300744,0.00011,2]
[334803259,1723600246433,-458.27649239,0.00011,2]
[334803261,1723600284542,155.0,0.00025,120]
[334803263,1723600325230,155.0,0.00025,120]
[334803265,1723600641099,7028.08535,0.00027,120]
[334803266,1723600669714,267.95,8.231e-05,2]
[334803269,1723600819611,155.0,0.00026967,120]
[334803270,1723600890059,200.0,0.00027,120]
[334803271,1723600913210,340.79,0.00027,120]
[334803273,1723601148464,280.59,8.219e-05,2]
[334803281,1723601336107,155.0,0.00026967,120]
[334803282,1723601384601,233.61036284,0.00025,120]
[334803284,1723601432456,-2705.49053353,9.952e-05,2]
[334803285,1723601432755,-966.79190843,9.952e-05,2]
[334803286,1723601432766,-489.99864248,9.952e-05,2]
[334803287,1723601432778,-150.65187561,9.952e-05,2]
[334803288,1723601432787,-369.84,0.00010009,2]
[334803289,1723601432796,-2521.73,0.00010068,2]
[334803290,1723601432806,-197.28,0.00010068,2]
[334803291,1723601432815,-300.0,0.00010069,2]
[334803292,1723601432825,-640.0,0.00010071,2]
[334803293,1723601432834,-250.0,0.00010092,2]
[334803294,1723601432848,-200.0,0.00010198,2]
[334803295,1723601432858,-173.78537191,0.00010348,2]
[334803296,1723601432870,-186.21462809,0.00010348,2]
[334803297,1723601432879,-280.59,0.0001048,2]
[334803298,1723601432891,-4200.0,0.000105,2]
[334803299,1723601432900,-150.96,0.000105,2]
[334803300,1723601432910,-535.13,0.000105,2]
[334803301,1723601432919,-150.0,0.000105,2]
[334803302,1723601432928,-531.02,0.000105,2]
[334803303,1723601432938,-500.0,0.000108,2]
[334803304,1723601432947,-621.7998,0.000108,2]
[334803305,1723601432957,-1000.0,0.000108,2]
[334803306,1723601432966,-972.7101,0.000108,2]
[334803307,1723601432976,-531.02,0.000108,2]
[334803308,1723601432986,-151.06,0.000108,2]
[334803309,1723601432995,-746.0254,0.000109,2]
[334803310,1723601433006,-657.8518,0.000109,2]
[334803311,1723601433015,-496.2913,0.000109,2]
[334803312,1723601433026,-150.0,0.000109,2]
[334803313,1723601433036,-177.7876,0.000109,2]
[334803314,1723601433047,-197.27814029,0.000109,2]
[334803315,1723601433057,-250.0,0.00010959,2]
[334803316,1723601433067,-546.01062816,0.0001099,2]
[334803317,1723601433077,-12526.35179625,0.00010997,2]
[334803318,1723601433086,-258.80252209,0.00010999,2]
[334803319,1723601433097,-121607.58768351,0.00011,2]
[334803320,1723601433106,-216.0,0.00011,2]
[334803321,1723601433116,-203.0,0.00011,2]
[334803322,1723601433126,-603.0,0.00011,2]
[334803323,1723601433135,-372.08019945,0.00011,2]
[334803324,1723601433145,-47273.48004587,0.00011,2]
[334803350,1723601438265,-93593.11442164,0.00011,2]
[334803352,1723601438276,-5041.6,0.00011,2]
[334803368,1723601438523,-2092331.66611444,0.00011,2]
[334803370,1723601438532,-139860.98749523,0.00011,2]
[334803372,1723601438543,-2000.0,0.00011,2]
[334803373,1723601438553,-151.615184,0.00011,2]
[334803374,1723601438563,-151.0,0.00011,2]
[334803375,1723601438572,-295.65797,0.00011,2]
[334803376,1723601438582,-151.0,0.00011,2]
[334803377,1723601438592,-151.0,0.00011,2]
[334803378,1723601438601,-151.325043,0.00011,2]
[334803379,1723601438611,-151.0,0.00011,2]
[334803380,1723601438620,-151.0,0.00011,2]
[334803381,1723601438631,-229.783814,0.00011,2]
[334803382,1723601438641,-151.0,0.00011,2]
[334803383,1723601438651,-151.0,0.00011,2]
[334803384,1723601438661,-151.0,0.00011,2]
[334803385,1723601438671,-151.0,0.00011,2]
[334803386,1723601438681,-151.0,0.00011,2]
[334803387,1723601438690,-151.42277,0.00011,2]
[334803388,1723601438700,-151.0,0.00011,2]
[334803389,1723601438710,-233.55271,0.00011,2]
[334803390,1723601438719,-233.55271,0.00011,2]
[334803391,1723601438729,-945.11,0.00011,2]
[334803392,1723601438739,-2123.59873,0.00011,2]
[334803393,1723601438749,-288.73,0.00011,2]
[334803394,1723601438758,-247.10174073,0.00011,2]
[334803395,1723601438767,-151.968352,0.00011014,2]
[334803396,1723601438777,-151.0,0.00011014,2]
[334803397,1723601438787,-151.0,0.00011014,2]
[334803398,1723601438796,-151.0,0.00011014,2]
[334803399,1723601438805,-170.378079,0.00011014,2]
[334803400,1723601438815,-151.0,0.00011014,2]
[334803401,1723601438824,-151.0,0.00011014,2]
[334803402,1723601438834,-151.0,0.00011014,2]
[334803403,1723601438843,-151.0,0.00011014,2]
[334803405,1723601438854,-151.0,0.00011014,2]
[334803407,1723601438863,-151.0,0.00011014,2]
[334803409,1723601438873,-233.55271,0.00011014,2]
[334803411,1723601438882,-233.55271,0.00011014,2]
[334803413,1723601438891,-300.25,0.00011041,2]
[334803415,1723601438901,-267.34,0.00011041,2]
[334803417,1723601438911,-531.02,0.00011041,2]
[334803419,1723601438920,-852.04,0.00011041,2]
[334803421,1723601438929,-777.02,0.00011041,2]
[334803423,1723601438939,-300.0,0.00011041,2]
[334803425,1723601438948,-531.02,0.00011041,2]
[334803427,1723601438958,-420.0,0.00011075,2]
[334803429,1723601438967,-2841.12816254,0.00011081,2]
[334803431,1723601438978,-150.89,0.000111,2]
[334803433,1723601438988,-155.80350465,0.00011105,2]
[334803435,1723601438997,-442.05614746,0.00011105,2]
[334803437,1723601439006,-628.70277812,0.00011105,2]
[334803439,1723601439016,-297.4607519,0.00011105,2]
[334803441,1723601439025,-155.0,0.00011105,2]
[334803443,1723601439035,-304.83825639,0.00011105,2]
[334803444,1723601439044,-155.0,0.00011105,2]
[334803445,1723601439053,-1298.06114648,0.00011105,2]
[334803446,1723601439063,-921.3480316,0.00011105,2]
[334803447,1723601439073,-155.0,0.00011105,2]
[334803448,1723601439082,-1454.8,0.00011105,2]
[334803449,1723601439091,-3121.02924387,0.00011105,2]
[334803450,1723601439101,-179.4623719,0.00011105,2]
[334803451,1723601439111,-649.92257342,0.00011105,2]
[334803452,1723601439120,-270.60181535,0.00011105,2]
[334803453,1723601439129,-155.13652621,0.00011105,2]
[334803454,1723601439140,-561.45324368,0.00011105,2]
[334803455,1723601439150,-380.35876131,0.00011105,2]
[334803456,1723601439163,-211.07994478,0.00011105,2]
[334803457,1723601439172,-400.0,0.00011105,2]
[334803458,1723601439182,-419.14897991,0.00011105,2]
[334803459,1723601439191,-429.47496909,0.00011105,2]
[334803460,1723601439201,-236.36319912,0.00011105,2]
[334803461,1723601439211,-723.4767735,0.00011105,2]
[334803462,1723601439222,-892.62032859,0.00011105,2]
[334803463,1723601439232,-432.5166998,0.00011105,2]
[334803464,1723601439242,-600.79792946,0.00011105,2]
[334803465,1723601439252,-160.94895313,0.00011105,2]
[334803466,1723601439263,-206.78622014,0.00011105,2]
[334803467,1723601439272,-319.38158331,0.00011105,2]
[334803468,1723601439282,-159.62357463,0.00011105,2]
[334803469,1723601439293,-3875.44196721,0.00011105,2]
[334803470,1723601439302,-2836.32398591,0.00011105,2]
[334803471,1723601439313,-3032.35761195,0.00011105,2]
[334803472,1723601439322,-2342.04182094,0.00011105,2]
[334803473,1723601439332,-2145.94258433,0.00011105,2]
[334803474,1723601439342,-2502.58566001,0.00011105,2]
[334803475,1723601439351,-520.17986791,0.00011105,2]
[334803476,1723601439362,-821.0191693,0.00011105,2]
[334803477,1723601439371,-365.42577775,0.00011105,2]
[334803478,1723601439380,-265.44133651,0.00011105,2]
[334803479,1723601439390,-837.50047848,0.00011105,2]
[334803480,1723601439399,-243.27449517,0.00011105,2]
[334803481,1723601439409,-298.67239716,0.00011105,2]
[334803482,1723601439418,-3937.52075365,0.00011105,2]
[334803483,1723601439428,-1275.75177255,0.00011105,2]
[334803484,1723601439438,-255.21992957,0.00011105,2]
[334803485,1723601439448,-1500.0,0.00011105,2]
[334803486,1723601439457,-1074.78314637,0.00011105,2]
[334803487,1723601439466,-9904.51052204,0.00011105,2]
[334803488,1723601439476,-493.63885733,0.00011105,2]
[334803489,1723601439486,-289.25862066,0.00011105,2]
[334803490,1723601439495,-1634.56112514,0.00011105,2]
[334803491,1723601439505,-179.17215777,0.00011105,2]
[334803492,1723601439736,-2296.94940342,0.00011105,2]
[334803493,1723601439747,-3082.46394052,0.00011105,2]
[334803494,1723601439756,-570.00341658,0.00011105,2]
[334803495,1723601439766,-2302.3593441,0.00011105,2]
[334803496,1723601439775,-185.48188221,0.00011105,2]
[334803497,1723601439785,-155.1466473,0.00011105,2]
[334803498,1723601439794,-155.0,0.00011105,2]
[334803499,1723601439803,-522.14618603,0.00011105,2]
[334803500,1723601439813,-485.06775145,0.00011105,2]
[334803501,1723601439823,-10534.95166335,0.00011105,2]
[334803502,1723601439833,-493.65156674,0.00011105,2]
[334803503,1723601439842,-330.22671498,0.00011105,2]
[334803504,1723601439852,-155.0,0.00011105,2]
[334803505,1723601439862,-155.13552351,0.00011105,2]
[334803506,1723601439872,-204.95419308,0.00011105,2]
[334803507,1723601439881,-155.12756668,0.00011105,2]
[334803508,1723601439891,-557.99776162,0.00011105,2]
[334803509,1723601439900,-155.11329335,0.00011105,2]
[334803510,1723601439909,-156.58911395,0.00011105,2]
[334803511,1723601439919,-155.14011931,0.00011105,2]
[334803512,1723601439928,-1042.00659292,0.00011105,2]
[334803513,1723601439938,-155.13529192,0.00011105,2]
[334803514,1723601439947,-187.92469458,0.00011105,2]
[334803515,1723601439957,-155.0,0.00011105,2]
[334803516,1723601439967,-155.15432672,0.00011105,2]
[334803517,1723601439976,-3404.69572783,0.00011105,2]
[334803518,1723601439986,-1707.92391978,0.00011105,2]
[334803519,1723601439995,-155.92047048,0.00011105,2]
[334803520,1723601440004,-163.82440527,0.00011105,2]
[334803521,1723601440014,-203.42899612,0.00011105,2]
[334803522,1723601440023,-3583.40099493,0.00011105,2]
[334803523,1723601440033,-1028.52255456,0.00011105,10]
[334803524,1723601440042,-1265.46951416,0.00011105,2]
[334803525,1723601440052,-547.92995912,0.00011105,2]
[334803526,1723601440062,-949.01086108,0.00011105,2]
[334803527,1723601440072,-221.0149852,0.00011138,2]
[334803528,1723601440081,-6001.9094057,0.00011146,2]
[334803529,1723601440091,-2555.6208294,0.00011146,2]
[334803530,1723601440100,-1837.2244279,0.00011154,2]
[334803532,1723601440110,-6371.6567356,0.00011154,2]
[334803533,1723601440120,-25322.221128,0.00011186,2]
[334803534,1723601440130,-35730.46351762,0.00011186,2]
[334803535,1723601440140,-1406.37135649,0.00011186,2]
[334803536,1723601440150,-153.39,0.00011194,2]
[334803537,1723601440159,-500.0,0.00011318,2]
[334803538,1723601440168,-226.980441,0.00011318,2]
[334803539,1723601440178,-197.28,0.00011326,2]
[334803540,1723601440187,-640.0,0.00011329,2]
[334803541,1723601440202,-219.962247,0.0001133,2]
[334803542,1723601440212,-194.98574167,0.00011442,2]
[334803543,1723601440221,-151.13,0.00011507,2]
[334803544,1723601440230,-152.0,0.00011574,3]
[334803545,1723601440239,-360.0,0.00011642,2]
[334803546,1723601440250,-152.0,0.00011773,4]
[334803547,1723601440259,-65676.09187174,0.000118,2]
[334803548,1723601440272,-663.2,0.000118,2]
[334803549,1723601440284,-380.0,0.000118,2]
[334803550,1723601440298,-46372.90028022,0.000118,2]
[334803551,1723601440308,-300.080314,0.000118,2]
[334803552,1723601440317,-151.0,0.000118,2]
[334803553,1723601440326,-186.45261,0.000118,2]
[334803554,1723601440335,-151.0,0.000118,2]
[334803555,1723601440344,-189.108,0.000118,2]
[334803556,1723601440352,-151.0,0.000118,2]
[334803557,1723601440361,-151.871141,0.000118,2]
[334803558,1723601440370,-151.0,0.000118,2]
[334803559,1723601440380,-151.0,0.000118,2]
[334803560,1723601440390,-233.55271,0.000118,2]
[334803561,1723601440400,-233.55271,0.000118,2]
[334803562,1723601440409,-531.02,0.00011863,2]
[334803563,1723601440419,-529.7,0.00011863,2]
[334803564,1723601440429,-3509.4383,0.000119,2]
[334803565,1723601440439,-152.0,0.00011972,5]
[334803567,1723601440448,-600.0,0.00012,2]
[334803569,1723601440457,-150.0,0.00012,2]
[334803571,1723601440466,-2123.59873,0.0001209,2]
[334803572,1723601440476,-152.0,0.00012171,6]
[334803573,1723601440485,-587.0,0.00012182,2]
[334803574,1723601440495,-152.0,0.0001237,7]
[334803575,1723601440505,-153.39,0.00012437,2]
[334803576,1723601440514,-150.0,0.000125,2]
[334803577,1723601440523,-170.57448431,0.00012526,2]
[334803578,1723601440532,-152.0,0.0001257,8]
[334803579,1723601440542,-197.28,0.00012585,2]
[334803580,1723601440552,-640.0,0.00012588,2]
[334803581,1723601440561,-304.33273384,0.00012613,2]
[334803582,1723601440570,-280.59,0.00012742,2]
[334803583,1723601440579,-152.0,0.00012769,9]
[334803584,1723601440588,-1008.0,0.000128,2]
[334803585,1723601440597,-360.0,0.00012936,2]
[334803586,1723601440606,-500.0,0.00012962,2]
[334803587,1723601440615,-152.0,0.00012968,10]
[334803588,1723601440624,-150.0,0.00013,2]
[334803589,1723601440633,-170.57448431,0.00013068,2]
[334803590,1723601440643,-152.0,0.00013167,11]
[334803591,1723601440652,-157.06310488,0.00013167,5]
[334803592,1723601440661,-348.17756228,0.00013303,2]
[334803593,1723601440672,-2123.59873,0.0001334,2]
[334803594,1723601440681,-823.0,0.00013399,2]
[334803595,1723601440690,-3022.7188224,0.00013498,2]
[334803596,1723601440699,-1681.43302543,0.00013498,2]
[334803597,1723601440708,-316.80001562,0.00013499,2]
[334803598,1723601440718,-150.0,0.000135,2]
[334803599,1723601440728,-150.0,0.0001351,2]
[334803600,1723601440737,-150.0,0.0001351,2]
[334803601,1723601440747,-150.20389496,0.0001351,2]
[334803602,1723601440756,-150.27701119,0.0001351,2]
[334803603,1723601440765,-163.73756125,0.0001351,2]
[334803604,1723601440774,-272.34292477,0.0001351,2]
[334803605,1723601440783,-150.31411225,0.0001351,2]
[334803606,1723601440792,-150.48450424,0.0001351,2]
[334803607,1723601440803,-150.0,0.0001351,2]
[334803608,1723601440812,-150.0,0.0001351,2]
[334803609,1723601440823,-150.0,0.0001351,2]
[334803610,1723601440832,-162.0295482,0.0001351,2]
[334803611,1723601440841,-150.0,0.0001351,2]
[334803612,1723601440850,-150.40582121,0.0001351,2]
[334803613,1723601440865,-546.87070022,0.00013579,2]
[334803614,1723601440880,-170.57448431,0.0001361,2]
[334803615,1723601440889,-163.73756125,0.00013626,2]
[334803616,1723601440898,-200.90836496,0.00013648,2]
[334803617,1723601440908,-200.0,0.00013673,2]
[334803618,1723601440921,-153.39,0.00013681,2]
[334803619,1723601440930,-118387.09392366,0.00013698,2]
[334803620,1723601440939,-500.0,0.00013698,2]
[334803621,1723601440948,-500.0,0.00013698,2]
[334803622,1723601440958,-500.0,0.00013698,2]
[334803623,1723601440967,-500.0,0.00013698,2]
[334803624,1723601440976,-151.0,0.00013698,2]
[334803625,1723601440985,-151.0,0.00013698,2]
[334803626,1723601440995,-151.700282,0.00013698,2]
[334803627,1723601441004,-151.0,0.00013698,2]
[334803628,1723601441013,-151.0,0.00013698,2]
[334803629,1723601441022,-152.64052,0.00013698,2]
[334803630,1723601441032,-500.0,0.00013698,2]
[334803631,1723601441041,-500.0,0.00013698,2]
[334803632,1723601441050,-500.0,0.00013698,2]
[334803633,1723601441059,-500.0,0.00013698,2]
[334803634,1723601441068,-151.0,0.00013698,2]
[334803635,1723601441077,-151.0,0.00013698,2]
[334803636,1723601441086,-151.0,0.00013698,2]
[334803637,1723601441095,-151.0,0.00013698,2]
[334803638,1723601441105,-151.0,0.00013698,2]
[334803639,1723601441114,-151.0,0.00013698,2]
[334803640,1723601441123,-151.0,0.00013698,2]
[334803641,1723601441133,-151.420249,0.00013698,2]
[334803642,1723601441143,-503.30327541,0.00013698,2]
[334803643,1723601441154,-500.0,0.00013698,2]
[334803644,1723601441163,-500.0,0.00013698,2]
[334803645,1723601441173,-500.0,0.00013698,2]
[334803646,1723601441182,-500.0,0.00013698,2]
[334803647,1723601441191,-500.0,0.00013698,2]
[334803648,1723601441201,-500.0,0.00013698,2]
[334803649,1723601441210,-151.0,0.00013698,2]
[334803650,1723601441223,-152.922274,0.00013698,2]
[334803651,1723601441232,-500.0,0.00013698,2]
[334803652,1723601441242,-500.0,0.00013698,2]
[334803653,1723601441251,-479.74811836,0.00013698,2]
[334803654,1723601441262,-500.0,0.00013698,2]
[334803655,1723601441271,-500.0,0.00013698,2]
[334803656,1723601441281,-500.0,0.00013698,2]
[334803657,1723601441291,-500.0,0.00013698,2]
[334803658,1723601441301,-500.0,0.00013698,2]
[334803659,1723601441311,-500.0,0.00013698,2]
[334803660,1723601441320,-500.51983518,0.00013698,2]
[334803661,1723601441331,-500.0,0.00013698,2]
[334803662,1723601441340,-500.0,0.00013698,2]
[334803663,1723601441349,-500.0,0.00013698,2]
[334803664,1723601441366,-500.0,0.00013698,2]
[334803665,1723601441383,-500.0,0.00013698,2]
[334803666,1723601441392,-151.0,0.00013698,2]
[334803667,1723601441401,-151.0,0.00013698,2]
[334803668,1723601441411,-152.296758,0.00013698,2]
[334803669,1723601441419,-500.0,0.00013698,2]
[334803670,1723601441429,-500.0,0.00013698,2]
[334803671,1723601441438,-151.0,0.00013698,2]
[334803672,1723601441447,-151.0,0.00013698,2]
[334803673,1723601441456,-151.0,0.00013698,2]
[334803674,1723601441465,-151.0,0.00013698,2]
[334803675,1723601441474,-233.55271,0.00013698,2]
[334803676,1723601441483,-233.55271,0.00013698,2]
[334803677,1723601441492,-233.55271,0.00013698,2]
[334803678,1723601441501,-233.55271,0.00013698,2]
[334803679,1723601441510,-233.55271,0.00013698,2]
[334803680,1723601441519,-233.55271,0.00013698,2]
[334803681,1723601441528,-233.55271,0.00013698,2]
[334803682,1723601441537,-500.0,0.00013698,2]
[334803683,1723601441546,-500.0,0.00013698,2]
[334803684,1723601441555,-233.55271,0.00013698,2]
[334803685,1723601441564,-233.55271,0.00013698,2]
[334803686,1723601441573,-233.55271,0.00013698,2]
[334803687,1723601441582,-233.55271,0.00013698,2]
[334803688,1723601441591,-233.55271,0.00013698,2]
[334803689,1723601441600,-233.55271,0.00013698,2]
[334803690,1723601441610,-500.0,0.00013698,2]
[334803691,1723601441619,-233.552715,0.00013698,2]
[334803692,1723601441628,-500.0,0.00013698,2]
[334803693,1723601441637,-500.0,0.00013698,2]
[334803694,1723601441647,-180.80002751,0.00013698,2]
[334803695,1723601441656,-500.0,0.00013698,2]
[334803696,1723601441666,-151.0,0.00013698,2]
[334803697,1723601441675,-151.0,0.00013698,2]
[334803698,1723601441684,-151.0,0.00013698,2]
[334803699,1723601441693,-151.0,0.00013698,2]
[334803700,1723601441704,-500.0,0.00013698,2]
[334803701,1723601441713,-151.0,0.00013698,2]
[334803702,1723601441723,-151.0,0.00013698,2]
[334803703,1723601441733,-151.0,0.00013698,2]
[334803704,1723601441743,-500.0,0.00013698,2]
[334803705,1723601441753,-151.0,0.00013698,2]
[334803706,1723601441762,-151.0,0.00013698,2]